bitfinex-derivatives/quotes_BTCF0:USTF0_20241109
["timestamp","ask_amount","ask_price","bid_price","bid_amount"]
[1731157665378,0.05878969,76386.0,76382.0,0.0061]
[1731157665576,0.0061,76386.0,76385.0,0.10469339]
[1731157665774,0.071521,76386.0,76385.0,0.065421]
[1731157674486,0.071521,76386.0,76385.0,0.10467884]
[1731157674893,0.071521,76386.0,76385.0,0.03925784]
[1731157677696,0.0061,76386.0,76384.0,0.03925784]
[1731157677887,0.065421,76385.0,76384.0,0.03925784]
[1731157678694,0.065421,76385.0,76383.0,0.10467984]
[1731157679489,0.065421,76385.0,76384.0,0.03925784]
[1731157681593,0.065421,76385.0,76383.0,0.065422]
[1731157682498,0.0061,76386.0,76383.0,0.065422]
[1731157682697,0.065422,76384.0,76383.0,0.065422]
[1731157696103,0.0061,76386.0,76382.0,0.3669]
[1731157696307,0.0061,76386.0,76385.0,0.065421]
[1731157702713,0.0061,76386.0,76385.0,0.11870302]
[1731157703112,0.0061,76386.0,76385.0,0.065421]
[1731157707329,0.0061,76386.0,76385.0,0.11777642]
[1731157707515,0.0061,76386.0,76385.0,0.065421]
[1731157707921,0.0061,76386.0,76385.0,0.157301]
[1731157710723,0.0061,76386.0,76385.0,0.20961957]
[1731157710914,0.0061,76386.0,76385.0,0.157301]
[1731157711317,0.0061,76386.0,76385.0,0.189801]
[1731157711524,0.0061,76386.0,76385.0,0.24211312]
[1731157711822,0.0061,76386.0,76385.0,0.34153214]
[1731157712012,0.0061,76386.0,76385.0,0.27614199]
[1731157712219,0.0061,76386.0,76385.0,0.3415628]
[1731157712727,0.0061,76386.0,76385.0,0.27610095]
[1731157713225,0.0061,76386.0,76385.0,0.34148519]
[1731157713726,0.0061,76386.0,76385.0,0.27610095]
[1731157713930,0.0061,76386.0,76385.0,0.34148039]
[1731157714120,0.0061,76386.0,76385.0,0.27610095]
[1731157714324,0.0061,76386.0,76385.0,0.34147475]
[1731157714625,0.0061,76386.0,76385.0,0.2551748]
[1731157715021,0.0061,76386.0,76385.0,0.34151388]
[1731157716028,0.0061,76386.0,76385.0,0.34147528]
[1731157716733,0.0061,76386.0,76385.0,0.25517538]
[1731157716942,0.0061,76386.0,76385.0,0.189801]
[1731157717328,0.0061,76386.0,76385.0,0.222001]
[1731157718828,0.0061,76386.0,76385.0,0.28737538]
[1731157719136,0.0061,76386.0,76385.0,0.222001]
[1731157720430,0.0061,76386.0,76385.0,0.30688732]
[1731157720633,0.0061,76386.0,76385.0,0.37224754]
[1731157720828,0.0061,76386.0,76385.0,0.222001]
[1731157721028,0.0061,76386.0,76385.0,0.28736122]
[1731157721228,0.0061,76386.0,76385.0,0.222001]
[1731157723033,0.0061,76386.0,76385.0,0.37249987]
[1731157723239,0.0061,76386.0,76385.0,0.30713965]
[1731157723535,0.0061,76386.0,76385.0,0.37249778]
[1731157723736,0.0061,76386.0,76385.0,0.28735913]
[1731157724529,0.0061,76392.0,76391.0,0.065416]
[1731157724738,0.0061,76397.0,76396.0,0.065412]
[1731157724934,0.00196397,76399.0,76391.0,0.46578026]
[1731157724935,0.00196397,76399.0,76398.0,0.06541]
[1731157738229,0.00196397,76399.0,76398.0,0.42621]
[1731157742240,0.0328,76402.0,76398.0,0.3608]
[1731157742438,0.0328,76402.0,76401.0,0.065408]
[1731157744445,0.0328,76402.0,76398.0,0.3608]
[1731157744645,0.065409,76399.0,76398.0,0.3608]
[1731157749152,0.065409,76399.0,76398.0,0.06541]
[1731157760954,0.06541,76398.0,76397.0,0.04534609]
[1731157763667,0.06541,76398.0,76397.0,0.0061]
[1731157764164,0.06541,76398.0,76397.0,0.04534609]
[1731157764867,0.06541,76398.0,76397.0,0.0061]
[1731157777869,0.06541,76398.0,76397.0,0.05837763]
[1731157778174,0.06541,76398.0,76397.0,0.0061]
[1731157778476,0.06541,76398.0,76397.0,0.05837763]
[1731157779769,0.06541,76398.0,76397.0,0.0061]
[1731157788378,0.26150203,76398.0,76397.0,0.0061]
[1731157790784,0.26150203,76398.0,76397.0,0.04535944]
[1731157793283,0.26150203,76398.0,76397.0,0.0061]
[1731157796084,0.62230203,76398.0,76397.0,0.0061]
[1731157804790,0.42621,76398.0,76397.0,0.0061]
[1731157805598,0.62262669,76398.0,76397.0,0.0061]
[1731157816801,0.26182669,76398.0,76397.0,0.0061]
[1731157817003,0.26182669,76398.0,76397.0,0.04535944]
[1731157818700,0.26182669,76398.0,76397.0,0.04536956]
[1731157819601,0.26182669,76398.0,76397.0,0.0061]
[1731157820493,0.06541,76398.0,76397.0,0.0061]
[1731157820692,0.06541,76398.0,76397.0,0.071511]
[1731157826609,0.06541,76398.0,76397.0,0.11077331]
[1731157828604,0.06541,76398.0,76397.0,0.071511]
[1731157829802,0.06541,76398.0,76397.0,0.11077239]
[1731157830008,0.06541,76398.0,76397.0,0.071511]
[1731157830314,0.06541,76398.0,76397.0,0.11077239]
[1731157830501,0.06541,76398.0,76397.0,0.071511]
[1731157831312,0.06541,76398.0,76397.0,0.0061]
[1731157833818,0.26243368,76398.0,76397.0,0.0061]
[1731157834020,0.3274638,76398.0,76397.0,0.0061]
[1731157834313,0.29503368,76398.0,76397.0,0.0061]
[1731157834513,0.3275225,76398.0,76397.0,0.0061]
[1731157835218,0.35995061,76398.0,76397.0,0.0061]
[1731157835512,0.34724143,76398.0,76397.0,0.0061]
[1731157835704,0.37969349,76398.0,76397.0,0.0061]
[1731157835910,0.35997456,76398.0,76397.0,0.0061]
[1731157836313,0.37969334,76398.0,76397.0,0.0061]
[1731157837109,0.3275225,76398.0,76397.0,0.0061]
[1731157841112,0.29503368,76398.0,76397.0,0.0061]
[1731157842015,0.31520561,76398.0,76397.0,0.0061]
[1731157842410,0.29503368,76398.0,76397.0,0.0061]
[1731157843112,0.31556909,76398.0,76389.0,0.03926043]
[1731157843308,0.29503368,76398.0,76391.0,0.03926043]
[1731157843517,0.426215,76392.0,76391.0,0.03926043]
[1731157843718,0.065416,76391.0,76390.0,0.03926043]
[1731157844116,0.26059371,76391.0,76390.0,0.03926043]
[1731157845526,0.065427,76378.0,76377.0,0.03926043]
[1731157845724,0.3608,76379.0,76376.0,0.03926043]
[1731157845912,0.065428,76377.0,76376.0,0.03926043]
[1731157846229,0.065429,76376.0,76375.0,0.03926043]
[1731157846522,0.3608,76379.0,76373.0,0.03926043]
[1731157846523,0.065431,76374.0,76373.0,0.03926043]
[1731157847021,0.3608,76379.0,76372.0,0.0646]
[1731157847231,0.065432,76373.0,76372.0,0.0646]
[1731157862441,0.065432,76373.0,76372.0,0.130033]
[1731157864641,0.065432,76373.0,76372.0,0.16929343]
[1731157865553,0.065432,76373.0,76372.0,0.130033]
[1731157866247,0.065432,76373.0,76372.0,0.16919784]
[1731157867142,0.065432,76373.0,76372.0,0.130033]
[1731157867744,0.065432,76373.0,76372.0,0.16920295]
[1731157868247,0.065432,76373.0,76372.0,0.130033]
[1731157868446,0.065432,76373.0,76372.0,0.16920295]
[1731157869447,0.065432,76373.0,76372.0,0.130033]
[1731157872250,0.0061,76376.0,76372.0,0.0646]
[1731157872450,0.0061,76376.0,76375.0,0.06543]
[1731157873149,0.0061,76376.0,76375.0,0.42623]
[1731157873553,0.06542,76388.0,76384.0,0.065422]
[1731157873762,0.06542,76388.0,76385.0,0.065421]
[1731157874445,0.09164,76390.0,76385.0,0.065421]
[1731157874446,0.06542,76387.0,76385.0,0.065421]
[1731157876155,0.09360415,76394.0,76385.0,0.065421]
[1731157876356,0.065421,76386.0,76385.0,0.065421]
[1731157876858,0.065417,76390.0,76380.0,0.097126]
[1731157877047,0.065422,76385.0,76380.0,0.13637056]
[1731157877356,0.09360415,76394.0,76383.0,0.03924456]
[1731157877654,0.065422,76385.0,76383.0,0.03924456]
[1731157878050,0.065422,76385.0,76384.0,0.03924456]
[1731157878249,0.065422,76385.0,76383.0,0.03924456]
[1731157880351,0.065422,76384.0,76383.0,0.03924456]
[1731157881350,0.065422,76384.0,76382.0,0.03924456]
[1731157881545,0.065423,76383.0,76382.0,0.03924456]
[1731157881748,0.065424,76382.0,76381.0,0.10464061]
[1731157881951,0.065424,76382.0,76381.0,0.10464046]
[1731157883359,0.08807569,76382.0,76381.0,0.065425]
[1731157883856,0.065424,76382.0,76381.0,0.065425]
[1731157884553,0.065424,76382.0,76381.0,0.10464046]
[1731157885254,0.065424,76382.0,76381.0,0.065425]
[1731157885864,0.065428,76378.0,76377.0,0.065428]
[1731157897260,0.065428,76378.0,76377.0,0.11775408]
[1731157898567,0.05362329,76382.0,76377.0,0.05232608]
[1731157898869,0.065424,76383.0,76381.0,0.065425]
[1731157899065,0.065424,76383.0,76382.0,0.03924076]
[1731157899267,0.065424,76383.0,76382.0,0.10466476]
[1731157899459,0.065424,76383.0,76382.0,0.065424]
[1731157907067,0.05160646,76386.0,76380.0,0.03924433]
[1731157907260,0.0223568,76385.0,76384.0,0.065421]
[1731157907460,0.0877778,76385.0,76384.0,0.065421]
[1731157907774,0.065421,76385.0,76384.0,0.065421]
[1731157908272,0.3608,76388.0,76383.0,0.0061]
[1731157908470,0.05130125,76388.0,76387.0,0.06542]
[1731157908769,0.065418,76389.0,76387.0,0.06542]
[1731157908976,0.065418,76389.0,76388.0,0.03925896]
[1731157909176,0.065418,76389.0,76387.0,0.06542]
[1731157910888,0.0514479,76391.0,76384.0,0.05232608]
[1731157911076,0.065415,76393.0,76389.0,0.03925264]
[1731157911269,0.065415,76393.0,76391.0,0.065416]
[1731157912573,0.00196415,76394.0,76392.0,0.03925264]
[1731157912769,0.00196415,76394.0,76393.0,0.065415]
[1731157913469,0.00196415,76394.0,76393.0,0.10464395]
[1731157913675,0.00196415,76394.0,76393.0,0.065415]
[1731157916368,0.00196415,76394.0,76393.0,0.10461055]
[1731157916764,0.00196415,76394.0,76393.0,0.065415]
[1731157916978,0.00196415,76394.0,76393.0,0.10460944]
[1731157917775,0.00196415,76394.0,76393.0,0.065415]
[1731157919580,0.00196415,76394.0,76393.0,0.10460944]
[1731157920375,0.00196415,76394.0,76393.0,0.065415]
[1731157922071,0.00196415,76394.0,76393.0,0.10460944]
[1731157922276,0.00196415,76394.0,76393.0,0.065415]
[1731157922476,0.00196415,76394.0,76390.0,0.3914]
[1731157922477,0.0061,76400.0,76390.0,0.3914]
[1731157922680,0.0061,76400.0,76399.0,0.065409]
[1731157922882,0.05199034,76400.0,76397.0,0.065411]
[1731157923086,0.065408,76401.0,76399.0,0.065409]
[1731157924381,0.065408,76401.0,76400.0,0.065409]
[1731157926088,0.1166604,76401.0,76400.0,0.065409]
[1731157926475,0.14006159,76401.0,76400.0,0.065409]
[1731157928684,0.07465359,76401.0,76400.0,0.065409]
[1731157929790,0.14006159,76401.0,76400.0,0.065409]
[1731157930187,0.1166604,76401.0,76400.0,0.065409]
[1731157930380,0.14008313,76401.0,76400.0,0.065409]
[1731157930580,0.1166604,76401.0,76400.0,0.065409]
[1731157931390,0.1166604,76401.0,76400.0,0.11900045]
[1731157933397,0.1166604,76401.0,76400.0,0.065409]
[1731157934285,0.065408,76401.0,76400.0,0.065409]
[1731157934991,0.36224,76403.0,76402.0,0.065407]
[1731157935292,0.3608,76403.0,76402.0,0.065407]
[1731157935984,0.05294735,76404.0,76403.0,0.065406]
[1731157936294,0.3608,76404.0,76403.0,0.065406]
[1731157936693,0.426205,76404.0,76403.0,0.065406]
[1731157938094,0.44963394,76404.0,76403.0,0.065406]
[1731157938291,0.426205,76404.0,76403.0,0.065406]
[1731157938695,0.4496387,76404.0,76403.0,0.065406]
[1731157939699,0.426205,76404.0,76403.0,0.065406]
[1731157942299,0.44952954,76404.0,76403.0,0.065406]
[1731157943198,0.426205,76404.0,76403.0,0.065406]
[1731157943394,0.44967733,76404.0,76403.0,0.065406]
[1731157945407,0.08887733,76404.0,76403.0,0.065406]
[1731157945606,0.065405,76404.0,76403.0,0.065406]
[1731157948601,0.08978781,76404.0,76403.0,0.065406]
[1731157949503,0.065405,76404.0,76403.0,0.065406]
[1731157953714,0.08977352,76404.0,76403.0,0.065406]
[1731157954501,0.065405,76404.0,76403.0,0.065406]
[1731157957511,0.08991841,76404.0,76403.0,0.065406]
[1731157959614,0.065405,76404.0,76403.0,0.065406]
[1731157971223,0.08794506,76404.0,76403.0,0.065406]
[1731157971429,0.065405,76404.0,76403.0,0.065406]
[1731157971823,0.08819658,76404.0,76403.0,0.065406]
[1731157974637,0.065405,76404.0,76403.0,0.065406]
[1731157985837,0.065407,76402.0,76401.0,0.05232608]
[1731157986239,0.065407,76402.0,76400.0,0.065408]
[1731157986444,0.065407,76402.0,76401.0,0.05233781]
[1731157986634,0.065407,76402.0,76400.0,0.065408]
[1731157987238,0.065407,76402.0,76399.0,0.3608]
[1731157987443,0.065407,76402.0,76401.0,0.065408]
[1731157988848,0.11676145,76402.0,76401.0,0.065408]
[1731157989147,0.065407,76402.0,76401.0,0.065408]
[1731157990150,0.065407,76402.0,76401.0,0.10467451]
[1731157990360,0.41287178,76403.0,76399.0,0.05235535]
[1731157990645,0.06541,76398.0,76397.0,0.0061]
[1731157992445,0.08794744,76398.0,76397.0,0.0061]
[1731157994549,0.14158149,76398.0,76397.0,0.0061]
[1731157995854,0.11904405,76398.0,76397.0,0.0061]
[1731157998348,0.11904405,76398.0,76397.0,0.04534772]
[1731158006856,0.11904405,76398.0,76397.0,0.0061]
[1731158007566,0.11904405,76398.0,76397.0,0.04534772]
[1731158010356,0.11904405,76398.0,76397.0,0.04532256]
[1731158013250,0.11904405,76398.0,76397.0,0.0061]
[1731158013850,0.14239791,76398.0,76397.0,0.0061]
[1731158015055,0.11904405,76398.0,76397.0,0.0061]
[1731158015456,0.14243653,76398.0,76397.0,0.0061]
[1731158020281,0.14243653,76398.0,76397.0,0.04532256]
[1731158020565,0.14243653,76398.0,76397.0,0.0061]
[1731158021064,0.14243653,76398.0,76397.0,0.04536767]
[1731158021499,0.14243653,76398.0,76397.0,0.0061]
[1731158027869,0.11904405,76398.0,76397.0,0.0061]
[1731158035676,0.14138088,76398.0,76397.0,0.0061]
[1731158036070,0.11904405,76398.0,76397.0,0.0061]
[1731158037580,0.11904405,76398.0,76397.0,0.071511]
[1731158038877,0.06541,76398.0,76397.0,0.071511]
[1731158039072,0.06541,76398.0,76397.0,0.165511]
[1731158039379,0.065408,76402.0,76401.0,0.065407]
[1731158043177,0.0877395,76402.0,76401.0,0.065407]
[1731158043777,0.08773607,76402.0,76401.0,0.065407]
[1731158044388,0.065408,76402.0,76401.0,0.065407]
[1731158044580,0.08774732,76402.0,76401.0,0.065407]
[1731158045280,0.065408,76402.0,76401.0,0.065407]
[1731158050499,0.08727636,76402.0,76401.0,0.065407]
[1731158050791,0.02186836,76402.0,76401.0,0.065407]
[1731158050992,0.065405,76404.0,76403.0,0.065405]
[1731158051188,0.0872727,76404.0,76403.0,0.065405]
[1731158051383,0.065405,76404.0,76403.0,0.10463132]
[1731158053087,0.065405,76404.0,76403.0,0.065405]
[1731158053292,0.05269629,76407.0,76406.0,0.065403]
[1731158053293,0.065403,76407.0,76406.0,0.065403]
[1731158054195,0.0654,76410.0,76409.0,0.0654]
[1731158054393,0.065402,76408.0,76407.0,0.04531914]
[1731158054895,0.065402,76408.0,76407.0,0.0061]
[1731158061596,0.065402,76408.0,76407.0,0.071503]
[1731158067093,0.08659642,76408.0,76407.0,0.071503]
[1731158067298,0.065402,76408.0,76407.0,0.071503]
[1731158067501,0.08659004,76408.0,76407.0,0.071503]
[1731158067899,0.065402,76408.0,76407.0,0.071503]
[1731158068106,0.08658987,76408.0,76407.0,0.071503]
[1731158068610,0.065402,76408.0,76407.0,0.071503]
[1731158081602,0.065402,76408.0,76407.0,0.0061]
[1731158081796,0.08736649,76408.0,76407.0,0.0061]
[1731158082309,0.12051554,76408.0,76407.0,0.0061]
[1731158082712,0.08736649,76408.0,76407.0,0.0061]
[1731158083001,0.1204412,76408.0,76407.0,0.0061]
[1731158083717,0.065402,76408.0,76407.0,0.0061]
[1731158085709,0.08746936,76408.0,76407.0,0.0061]
[1731158088214,0.08746936,76408.0,76407.0,0.04535166]
[1731158088708,0.065402,76408.0,76407.0,0.0061]
[1731158090308,0.065402,76408.0,76407.0,0.04535055]
[1731158091613,0.08739272,76408.0,76407.0,0.0061]
[1731158093914,0.08739272,76408.0,76407.0,0.04534839]
[1731158094906,0.08739272,76408.0,76407.0,0.0061]
[1731158097199,0.08739272,76408.0,76407.0,0.0453489]
[1731158097615,0.08739272,76408.0,76407.0,0.0061]
[1731158098110,0.08739272,76408.0,76407.0,0.0453489]
[1731158098416,0.08739272,76408.0,76407.0,0.0061]
[1731158098716,0.08739272,76408.0,76407.0,0.04534897]
[1731158099207,0.08739272,76408.0,76407.0,0.0061]
[1731158100009,0.08739272,76408.0,76407.0,0.04534897]
[1731158101804,0.08739272,76408.0,76407.0,0.04534954]
[1731158102311,0.08739272,76408.0,76407.0,0.0061]
[1731158104510,0.065402,76408.0,76407.0,0.0061]
[1731158111320,0.08702866,76408.0,76407.0,0.0061]
[1731158111521,0.08702866,76408.0,76407.0,0.04536475]
[1731158111919,0.08702866,76408.0,76407.0,0.0061]
[1731158112817,0.08702866,76408.0,76407.0,0.04536144]
[1731158114323,0.08702866,76408.0,76407.0,0.0061]
[1731158115131,0.065402,76408.0,76407.0,0.0061]
[1731158115836,0.065402,76408.0,76407.0,0.0584461]
[1731158116017,0.065402,76408.0,76407.0,0.0061]
[1731158116720,0.065402,76408.0,76407.0,0.0584461]
[1731158117023,0.065402,76408.0,76407.0,0.0061]
[1731158119717,0.065402,76408.0,76407.0,0.04536077]
[1731158119923,0.065402,76408.0,76407.0,0.0061]
[1731158122121,0.09825375,76408.0,76407.0,0.0061]
[1731158122321,0.11925501,76408.0,76407.0,0.0061]
[1731158125635,0.08640326,76408.0,76407.0,0.04536077]
[1731158126228,0.08640326,76408.0,76407.0,0.0061]
[1731158126423,0.065402,76408.0,76407.0,0.0061]
[1731158126629,0.065402,76408.0,76407.0,0.04536164]
[1731158127330,0.065402,76408.0,76407.0,0.0061]
[1731158130729,0.065402,76408.0,76407.0,0.0453627]
[1731158131431,0.08618257,76408.0,76407.0,0.0453627]
[1731158132236,0.08618257,76408.0,76407.0,0.0061]
[1731158132544,0.11904661,76408.0,76407.0,0.0061]
[1731158133139,0.11901649,76408.0,76407.0,0.0061]
[1731158134540,0.08618257,76408.0,76407.0,0.0061]
[1731158139548,0.065402,76408.0,76407.0,0.0061]
[1731158148350,0.065402,76408.0,76407.0,0.071503]
[1731158155759,0.09810122,76408.0,76407.0,0.071503]
[1731158156455,0.11821192,76408.0,76407.0,0.071503]
[1731158157262,0.0855127,76408.0,76407.0,0.071503]
[1731158157466,0.065402,76408.0,76407.0,0.071503]
[1731158162264,0.08542021,76408.0,76407.0,0.071503]
[1731158163352,0.065402,76408.0,76407.0,0.071503]
[1731158169563,0.065402,76408.0,76407.0,0.1238491]
[1731158170667,0.065402,76408.0,76407.0,0.071503]
[1731158171667,0.08542016,76408.0,76407.0,0.071503]
[1731158173775,0.065402,76408.0,76407.0,0.071503]
[1731158174278,0.08512189,76408.0,76407.0,0.071503]
[1731158174665,0.065402,76408.0,76407.0,0.071503]
[1731158175074,0.08505913,76408.0,76407.0,0.071503]
[1731158178675,0.065402,76408.0,76407.0,0.071503]
[1731158192185,0.065402,76408.0,76407.0,0.1238491]
[1731158192376,0.065402,76408.0,76407.0,0.071503]
[1731158196094,0.065402,76409.0,76408.0,0.065401]
[1731158196286,0.065402,76409.0,76408.0,0.21758824]
[1731158196583,0.065402,76409.0,76408.0,0.25683281]
[1731158196779,0.065402,76409.0,76408.0,0.10464557]
[1731158200182,0.065402,76409.0,76408.0,0.065401]
[1731158200778,0.065402,76409.0,76408.0,0.1177471]
[1731158202286,0.065402,76409.0,76408.0,0.065401]
[1731158205290,0.065402,76409.0,76408.0,0.1177471]
[1731158205487,0.065402,76409.0,76408.0,0.0523461]
[1731158205880,0.065402,76408.0,76407.0,0.1238491]
[1731158207879,0.065402,76408.0,76407.0,0.071503]
[1731158208693,0.065402,76408.0,76407.0,0.11074755]
[1731158208986,0.065402,76408.0,76407.0,0.071503]
[1731158209190,0.065402,76408.0,76407.0,0.11074755]
[1731158210492,0.065402,76408.0,76407.0,0.071503]
[1731158215093,0.065402,76408.0,76407.0,0.11074755]
[1731158215296,0.065402,76408.0,76407.0,0.071503]
[1731158217209,0.11891106,76408.0,76407.0,0.071503]
[1731158222409,0.065402,76408.0,76407.0,0.071503]
[1731158244826,0.065402,76408.0,76407.0,0.0061]
[1731158273938,0.065402,76408.0,76407.0,0.05844694]
[1731158275838,0.065402,76408.0,76407.0,0.0061]
[1731158282551,0.08439385,76408.0,76407.0,0.0061]
[1731158283951,0.065402,76408.0,76407.0,0.0061]
[1731158288756,0.065402,76408.0,76407.0,0.04534808]
[1731158289052,0.065402,76408.0,76407.0,0.0061]
[1731158289452,0.426202,76408.0,76407.0,0.04534681]
[1731158291552,0.065402,76408.0,76407.0,0.04534681]
[1731158291758,0.426202,76408.0,76407.0,0.04534681]
[1731158291954,0.065402,76408.0,76407.0,0.04534681]
[1731158292155,0.426202,76408.0,76407.0,0.0061]
[1731158292957,0.065402,76408.0,76407.0,0.0061]
[1731158293355,0.426202,76408.0,76407.0,0.0061]
[1731158293762,0.426202,76408.0,76407.0,0.04534681]
[1731158294059,0.426202,76408.0,76407.0,0.0061]
[1731158294265,0.065402,76408.0,76407.0,0.0061]
[1731158296364,0.065402,76408.0,76407.0,0.04534257]
[1731158299066,0.065402,76408.0,76407.0,0.0061]
[1731158317369,0.065402,76408.0,76407.0,0.04535924]
[1731158317772,0.065402,76408.0,76407.0,0.0061]
[1731158318281,0.065402,76408.0,76407.0,0.04535925]
[1731158318470,0.065402,76408.0,76407.0,0.0061]
[1731158321288,0.065402,76408.0,76407.0,0.05843878]
[1731158322174,0.065402,76408.0,76407.0,0.0061]
[1731158322473,0.065402,76408.0,76407.0,0.05843878]
[1731158329287,0.065402,76408.0,76407.0,0.0061]
[1731158330987,0.08399765,76408.0,76407.0,0.0061]
[1731158331173,0.065402,76408.0,76407.0,0.0061]
[1731158331679,0.08399831,76408.0,76407.0,0.0061]
[1731158336193,0.065402,76408.0,76407.0,0.0061]
[1731158343192,0.065402,76408.0,76407.0,0.05843878]
[1731158348189,0.08402857,76408.0,76407.0,0.05843878]
[1731158348592,0.28097201,76408.0,76407.0,0.04536714]
[1731158348794,0.29284207,76408.0,76407.0,0.04536714]
[1731158349395,0.29284207,76408.0,76407.0,0.0061]
[1731158351101,0.65364207,76408.0,76407.0,0.0061]
[1731158357607,0.68601165,76408.0,76407.0,0.0061]
[1731158358208,0.65364207,76408.0,76407.0,0.0061]
[1731158362614,0.29284207,76408.0,76407.0,0.0061]
[1731158362808,0.65364207,76408.0,76407.0,0.0061]
[1731158364515,0.29284207,76408.0,76407.0,0.0061]
[1731158364818,0.65364207,76408.0,76407.0,0.0061]
[1731158365016,0.29284207,76408.0,76407.0,0.0061]
[1731158365211,0.65364207,76408.0,76407.0,0.0061]
[1731158366224,0.68594105,76408.0,76407.0,0.0061]
[1731158366722,0.70563194,76408.0,76407.0,0.0061]
[1731158367918,0.34474504,76408.0,76407.0,0.0061]
[1731158368118,0.70554504,76408.0,76407.0,0.0061]
[1731158370733,0.34474504,76408.0,76407.0,0.0061]
[1731158370923,0.70554504,76408.0,76407.0,0.0061]
[1731158372843,0.34474504,76408.0,76407.0,0.0061]
[1731158373040,0.70554504,76408.0,76407.0,0.0061]
[1731158373239,0.67333296,76408.0,76407.0,0.0061]
[1731158375643,0.65364207,76408.0,76407.0,0.0061]
[1731158377133,0.60750138,76408.0,76398.0,0.07016714]
[1731158377331,0.065409,76399.0,76398.0,0.07016714]
[1731158378839,0.065409,76399.0,76398.0,0.0309]
[1731158384651,0.11749995,76399.0,76398.0,0.0309]
[1731158391041,0.05209095,76399.0,76397.0,0.0635]
[1731158391249,0.06541,76398.0,76397.0,0.0635]
[1731158391645,0.26116754,76398.0,76397.0,0.0323]
[1731158395946,0.62196754,76398.0,76397.0,0.0323]
[1731158396757,0.55655754,76398.0,76396.0,0.03924846]
[1731158396958,0.065411,76397.0,76396.0,0.03924846]
[1731158397157,0.065412,76396.0,76395.0,0.03924846]
[1731158397549,0.065412,76396.0,76393.0,0.03924846]
[1731158397550,0.065414,76394.0,76393.0,0.03924846]
[1731158397747,0.065415,76393.0,76392.0,0.03924846]
[1731158397949,0.08597101,76393.0,76392.0,0.03924846]
[1731158400455,0.065416,76391.0,76390.0,0.0309]
[1731158400955,0.44695241,76391.0,76390.0,0.0309]
[1731158403058,0.47257641,76391.0,76389.0,0.03922905]
[1731158403363,0.065422,76384.0,76383.0,0.0061]
[1731158403557,0.65329911,76391.0,76383.0,0.03922691]
[1731158403759,0.3608,76384.0,76381.0,0.03922691]
[1731158403965,0.065424,76382.0,76381.0,0.03922691]
[1731158404167,0.065425,76381.0,76379.0,0.03922691]
[1731158404558,0.26225017,76381.0,76378.0,0.0631]
[1731158405267,0.26225017,76381.0,76376.0,0.0313]
[1731158405562,0.62305017,76381.0,76373.0,0.0061]
[1731158406663,0.065431,76374.0,76373.0,0.0061]
[1731158406862,0.065433,76372.0,76367.0,0.13622691]
[1731158407059,0.09108,76374.0,76367.0,0.13622691]
[1731158407363,0.065434,76371.0,76367.0,0.13622691]
[1731158408063,0.065434,76371.0,76363.0,0.35005469]
[1731158408263,0.065434,76371.0,76363.0,0.34937469]
[1731158408459,0.3608,76373.0,76363.0,0.34937469]
[1731158408665,0.065436,76368.0,76363.0,0.29702691]
[1731158408865,0.065436,76368.0,76367.0,0.001]
[1731158409866,0.065436,76368.0,76367.0,0.002]
[1731158410369,0.065436,76368.0,76367.0,0.005]
[1731158411467,0.065436,76368.0,76367.0,0.004]
[1731158412370,0.065436,76368.0,76367.0,0.008]
[1731158414071,0.1183051,76368.0,76367.0,0.008]
[1731158414371,0.4791051,76368.0,76367.0,0.008]
[1731158417772,0.4791051,76368.0,76367.0,0.004]
[1731158418066,0.4791051,76368.0,76360.0,0.0304]
[1731158418067,0.065438,76367.0,76360.0,0.0304]
[1731158419272,0.4151491,76368.0,76360.0,0.0304]
[1731158419273,0.065438,76366.0,76360.0,0.0304]
[1731158420071,0.06544,76363.0,76360.0,0.0304]
[1731158423864,0.06544,76364.0,76360.0,0.0304]
[1731158425080,0.065441,76363.0,76360.0,0.0304]
[1731158426181,0.065441,76362.0,76360.0,0.0304]
[1731158427475,0.4151491,76368.0,76360.0,0.0304]
[1731158427677,0.065442,76361.0,76360.0,0.0304]
[1731158428373,0.065442,76361.0,76360.0,0.08256551]
[1731158429473,0.065442,76361.0,76360.0,0.0304]
[1731158430783,0.065444,76359.0,76358.0,0.127944]
[1731158431483,0.065444,76359.0,76358.0,0.065444]
[1731158432273,0.065444,76359.0,76358.0,0.15155121]
[1731158432469,0.065444,76359.0,76358.0,0.08610721]
[1731158432677,0.3608,76360.0,76356.0,0.06535631]
[1731158432877,0.065445,76357.0,76356.0,0.06535631]
[1731158433183,0.3608,76360.0,76354.0,0.06535631]
[1731158433388,0.065447,76355.0,76354.0,0.06535631]
[1731158433789,0.065447,76355.0,76354.0,0.08646987]
[1731158435079,0.065447,76355.0,76353.0,0.06543209]
[1731158435381,0.065448,76354.0,76353.0,0.06543209]
[1731158435587,0.065448,76354.0,76353.0,0.15182824]
[1731158435785,0.065448,76354.0,76353.0,0.15183366]
[1731158435978,0.065448,76354.0,76353.0,0.08639615]
[1731158436188,0.065448,76354.0,76353.0,0.15182761]
[1731158436479,0.065448,76354.0,76352.0,0.09743146]
[1731158436685,0.065448,76354.0,76353.0,0.005]
[1731158437489,0.065448,76354.0,76353.0,0.009]
[1731158438173,0.065448,76354.0,76353.0,0.01]
[1731158440397,0.065448,76354.0,76353.0,0.06232157]
[1731158440979,0.065448,76354.0,76353.0,0.06232165]
[1731158441488,0.065448,76354.0,76353.0,0.01]
[1731158449595,0.26147628,76354.0,76353.0,0.01]
[1731158452889,0.62227628,76354.0,76353.0,0.01]
[1731158454402,0.62227628,76354.0,76353.0,0.005]
[1731158455204,0.64445493,76354.0,76353.0,0.005]
[1731158455793,0.065457,76344.0,76343.0,0.0061]
[1731158455998,0.065458,76342.0,76341.0,0.05230686]
[1731158457207,0.065459,76341.0,76338.0,0.065462]
[1731158457505,0.065461,76339.0,76335.0,0.11777086]
[1731158459502,0.065462,76338.0,76335.0,0.11777086]
[1731158460202,0.065462,76338.0,76336.0,0.05230686]
[1731158461009,0.065463,76337.0,76336.0,0.05230686]
[1731158461709,0.065463,76337.0,76336.0,0.11776986]